[Event "Titled Tuesday Blitz May 10 Early 2022"]
[White "Bachmann, Axel"]
[Black "Bashirli, Nail"]
[WhiteFideId "3700488"]
[BlackFideId "13406809"]
[WhiteElo "2587"]
[BlackElo "2333"]
[Result "1-0"]
[Round "04"]
[TimeControl "180+1"]
[Date "2022.05.11"]
[WhiteClock "0:00:52"]
[BlackClock "0:00:04"]

1. e4 {[%clk 0:03:00]}  c5 {[%clk 0:02:57]} 2. Nf3 {[%clk 0:03:00]}  d6 {[%clk 0:02:54]} 3. d4 {[%clk 0:03:00]}  cxd4 {[%clk 0:02:55]} 4. Nxd4 {[%clk 0:03:00]}  Nf6 {[%clk 0:02:55]} 5. Nc3 {[%clk 0:03:00]}  Nc6 {[%clk 0:02:56]} 6. Bg5 {[%clk 0:02:56]}  Bd7 {[%clk 0:02:56]} 7. Qd2 {[%clk 0:02:53]}  Rc8 {[%clk 0:02:56]} 8. O-O-O {[%clk 0:02:51]}  Qa5 {[%clk 0:02:51]} 9. Nb3 {[%clk 0:02:49]}  Qb6 {[%clk 0:02:30]} 10. f4 {[%clk 0:02:40]}  e6 {[%clk 0:02:26]} 11. e5 {[%clk 0:01:48]}  Ng4 {[%clk 0:01:36]} 12. exd6 {[%clk 0:01:47]}  Nf2 {[%clk 0:01:08]} 13. Na4 {[%clk 0:01:43]}  Qb4 {[%clk 0:01:08]} 14. Qxf2 {[%clk 0:01:43]}  Qxa4 {[%clk 0:01:08]} 15. f5 {[%clk 0:01:19]}  Nb4 {[%clk 0:00:24]} 16. fxe6 {[%clk 0:00:59]}  fxe6 {[%clk 0:00:22]} 17. Bd3 {[%clk 0:00:59]}  Nxa2+ {[%clk 0:00:19]} 18. Kb1 {[%clk 0:00:56]}  Nb4 {[%clk 0:00:18]} 19. Rhf1 {[%clk 0:00:53]}  Qa2+ {[%clk 0:00:06]} 20. Kc1 {[%clk 0:00:52]}  Nxd3+ {[%clk 0:00:04]} 21. Rxd3 {[%clk 0:00:52]} 1-0


[Site "https://www.chess.com"]

[Event "Titled Tuesday Blitz May 10 Early 2022"]
[White "Ballester Llagaria, Luis Eduardo"]
[Black "Sailer, Mike"]
[WhiteFideId "2297620"]
[BlackFideId "2012901"]
[WhiteElo "2344"]
[BlackElo "2109"]
[Result "1-0"]
[Round "04"]
[TimeControl "180+1"]
[Date "2022.05.11"]
[WhiteClock "0:00:28"]
[BlackClock "0:00:22"]

1. e4 {[%clk 0:02:57]}  d5 {[%clk 0:02:59]} 2. exd5 {[%clk 0:02:56]}  Qxd5 {[%clk 0:03:00]} 3. Nf3 {[%clk 0:02:56]}  Bg4 {[%clk 0:03:00]} 4. Be2 {[%clk 0:02:56]}  Nc6 {[%clk 0:03:01]} 5. d4 {[%clk 0:02:56]}  O-O-O {[%clk 0:03:01]} 6. Be3 {[%clk 0:02:56]}  Nf6 {[%clk 0:03:00]} 7. h3 {[%clk 0:02:45]}  Bxf3 {[%clk 0:02:49]} 8. Bxf3 {[%clk 0:02:46]}  Qa5+ {[%clk 0:02:44]} 9. c3 {[%clk 0:02:38]}  Qa6 {[%clk 0:02:19]} 10. Be2 {[%clk 0:02:14]}  Qa5 {[%clk 0:02:07]} 11. Nd2 {[%clk 0:01:54]}  e6 {[%clk 0:01:49]} 12. b4 {[%clk 0:01:42]}  Qf5 {[%clk 0:01:39]} 13. b5 {[%clk 0:01:36]}  Nb8 {[%clk 0:01:30]} 14. Qa4 {[%clk 0:01:29]}  Nd5 {[%clk 0:01:15]} 15. Qxa7 {[%clk 0:01:17]}  Nxc3 {[%clk 0:00:57]} 16. Bf3 {[%clk 0:00:39]}  Nd5 {[%clk 0:00:48]} 17. O-O {[%clk 0:00:34]}  Bd6 {[%clk 0:00:38]} 18. Nc4 {[%clk 0:00:29]}  Nxe3 {[%clk 0:00:22]} 19. Nb6+ {[%clk 0:00:28]}  cxb6 {[%clk 0:00:22]} 20. Qxb7# {[%clk 0:00:28]} 1-0


[Site "https://www.chess.com"]

[Event "Titled Tuesday Blitz May 10 Early 2022"]
[White "Bas Mas, Jose Joaquin"]
[Black "Cramling Bellon, Anna"]
[WhiteFideId "22219064"]
[BlackFideId "32009232"]
[WhiteElo "2233"]
[BlackElo "1905"]
[Result "1/2-1/2"]
[Round "04"]
[TimeControl "180+1"]
[Date "2022.05.11"]
[WhiteClock "0:00:18"]
[BlackClock "0:00:03"]

1. e4 {[%clk 0:03:00]}  c5 {[%clk 0:02:53]} 2. Nc3 {[%clk 0:02:59]}  Nc6 {[%clk 0:02:53]} 3. Bb5 {[%clk 0:02:59]}  e6 {[%clk 0:02:50]} 4. Bxc6 {[%clk 0:02:59]}  dxc6 {[%clk 0:02:51]} 5. f4 {[%clk 0:02:59]}  g6 {[%clk 0:02:51]} 6. Nf3 {[%clk 0:02:59]}  Bg7 {[%clk 0:02:51]} 7. O-O {[%clk 0:02:59]}  Ne7 {[%clk 0:02:50]} 8. d3 {[%clk 0:03:00]}  O-O {[%clk 0:02:48]} 9. Qe1 {[%clk 0:02:58]}  b6 {[%clk 0:02:47]} 10. Qh4 {[%clk 0:02:34]}  Ba6 {[%clk 0:02:24]} 11. f5 {[%clk 0:02:24]}  exf5 {[%clk 0:02:22]} 12. Bg5 {[%clk 0:02:22]}  f6 {[%clk 0:02:22]} 13. Bh6 {[%clk 0:02:22]}  c4 {[%clk 0:02:14]} 14. Bxg7 {[%clk 0:02:16]}  Kxg7 {[%clk 0:02:14]} 15. dxc4 {[%clk 0:02:11]}  Bxc4 {[%clk 0:02:13]} 16. Rfe1 {[%clk 0:02:09]}  Re8 {[%clk 0:01:45]} 17. exf5 {[%clk 0:02:07]}  Bf7 {[%clk 0:01:32]} 18. fxg6 {[%clk 0:01:44]}  hxg6 {[%clk 0:01:33]} 19. Rad1 {[%clk 0:01:35]}  Qc7 {[%clk 0:01:27]} 20. Ne4 {[%clk 0:01:33]}  g5 {[%clk 0:01:19]} 21. Nfxg5 {[%clk 0:01:28]}  fxg5 {[%clk 0:01:16]} 22. Qxg5+ {[%clk 0:01:28]}  Ng6 {[%clk 0:01:16]} 23. Qf6+ {[%clk 0:01:26]}  Kf8 {[%clk 0:00:47]} 24. Ng5 {[%clk 0:00:55]}  Qf4 {[%clk 0:00:22]} 25. Nh7+ {[%clk 0:00:25]}  Kg8 {[%clk 0:00:22]} 26. Qxf4 {[%clk 0:00:25]}  Rxe1+ {[%clk 0:00:21]} 27. Rxe1 {[%clk 0:00:25]}  Nxf4 {[%clk 0:00:22]} 28. Nf6+ {[%clk 0:00:24]}  Kg7 {[%clk 0:00:22]} 29. Nd7 {[%clk 0:00:23]}  Rd8 {[%clk 0:00:20]} 30. Ne5 {[%clk 0:00:23]}  Re8 {[%clk 0:00:16]} 31. g3 {[%clk 0:00:20]}  Ng6 {[%clk 0:00:10]} 32. Nd3 {[%clk 0:00:19]}  Rxe1+ {[%clk 0:00:10]} 33. Nxe1 {[%clk 0:00:20]}  Ne5 {[%clk 0:00:08]} 34. a3 {[%clk 0:00:20]}  Bd5 {[%clk 0:00:08]} 35. Kf2 {[%clk 0:00:18]}  Kg6 {[%clk 0:00:08]} 36. h3 {[%clk 0:00:18]}  Kg5 {[%clk 0:00:08]} 37. b3 {[%clk 0:00:18]}  Be4 {[%clk 0:00:06]} 38. c4 {[%clk 0:00:18]}  c5 {[%clk 0:00:05]} 39. Ke3 {[%clk 0:00:18]}  Bc6 {[%clk 0:00:04]} 40. Nc2 {[%clk 0:00:15]}  a6 {[%clk 0:00:03]} 41. Ne1 {[%clk 0:00:15]}  b5 {[%clk 0:00:04]} 42. cxb5 {[%clk 0:00:16]}  axb5 {[%clk 0:00:05]} 43. b4 {[%clk 0:00:15]}  cxb4 {[%clk 0:00:05]} 44. axb4 {[%clk 0:00:15]}  Nc4+ {[%clk 0:00:05]} 45. Kd4 {[%clk 0:00:16]}  Nd2 {[%clk 0:00:05]} 46. Kc5 {[%clk 0:00:16]}  Bd7 {[%clk 0:00:02]} 47. Nd3 {[%clk 0:00:16]}  Bxh3 {[%clk 0:00:02]} 48. Kxb5 {[%clk 0:00:15]}  Bf1 {[%clk 0:00:03]} 49. Kc5 {[%clk 0:00:15]}  Bxd3 {[%clk 0:00:03]} 50. b5 {[%clk 0:00:16]}  Nf3 {[%clk 0:00:03]} 51. b6 {[%clk 0:00:16]}  Ne5 {[%clk 0:00:04]} 52. b7 {[%clk 0:00:16]}  Nd7+ {[%clk 0:00:04]} 53. Kd4 {[%clk 0:00:16]}  Bf5 {[%clk 0:00:04]} 54. Kd5 {[%clk 0:00:16]}  Kg4 {[%clk 0:00:03]} 55. Kd6 {[%clk 0:00:17]}  Kxg3 {[%clk 0:00:03]} 56. Kc7 {[%clk 0:00:17]}  Kf4 {[%clk 0:00:03]} 57. b8=Q {[%clk 0:00:17]}  Nxb8 {[%clk 0:00:03]} 58. Kxb8 {[%clk 0:00:18]} 1/2-1/2


[Site "https://www.chess.com"]

[Event "Titled Tuesday Blitz May 10 Early 2022"]
[White "Bilych, Olexiy"]
[Black "Navalgund, Niranjan"]
[WhiteFideId "14156504"]
[BlackFideId "5030854"]
[WhiteElo "2176"]
[BlackElo "2290"]
[Result "1-0"]
[Round "04"]
[TimeControl "180+1"]
[Date "2022.05.11"]
[WhiteClock "0:01:13"]
[BlackClock "0:00:10"]

1. e4 {[%clk 0:03:00]}  e5 {[%clk 0:02:58]} 2. Nf3 {[%clk 0:03:00]}  Nc6 {[%clk 0:02:58]} 3. Bc4 {[%clk 0:03:00]}  Nf6 {[%clk 0:02:58]} 4. d3 {[%clk 0:03:00]}  h6 {[%clk 0:02:29]} 5. O-O {[%clk 0:03:00]}  d6 {[%clk 0:02:28]} 6. a4 {[%clk 0:03:00]}  a5 {[%clk 0:02:24]} 7. c3 {[%clk 0:02:47]}  g5 {[%clk 0:02:15]} 8. Nbd2 {[%clk 0:02:44]}  Bg7 {[%clk 0:02:10]} 9. h3 {[%clk 0:02:43]}  g4 {[%clk 0:02:09]} 10. hxg4 {[%clk 0:02:42]}  Bxg4 {[%clk 0:02:09]} 11. Bb5 {[%clk 0:02:31]}  h5 {[%clk 0:01:52]} 12. Nc4 {[%clk 0:02:23]}  h4 {[%clk 0:01:49]} 13. Ne3 {[%clk 0:02:22]}  Bd7 {[%clk 0:01:34]} 14. Nf5 {[%clk 0:02:09]}  Bxf5 {[%clk 0:01:28]} 15. exf5 {[%clk 0:02:10]}  Qd7 {[%clk 0:01:29]} 16. d4 {[%clk 0:01:53]}  e4 {[%clk 0:01:15]} 17. d5 {[%clk 0:01:51]}  exf3 {[%clk 0:01:14]} 18. Qxf3 {[%clk 0:01:52]}  Nxd5 {[%clk 0:01:03]} 19. Qxd5 {[%clk 0:01:36]}  O-O-O {[%clk 0:00:37]} 20. Bg5 {[%clk 0:01:24]}  Rde8 {[%clk 0:00:28]} 21. Rfe1 {[%clk 0:01:20]}  Re5 {[%clk 0:00:13]} 22. Rxe5 {[%clk 0:01:20]}  Bxe5 {[%clk 0:00:14]} 23. f4 {[%clk 0:01:20]}  Bg7 {[%clk 0:00:13]} 24. f6 {[%clk 0:01:20]}  Bf8 {[%clk 0:00:14]} 25. Re1 {[%clk 0:01:20]}  Rg8 {[%clk 0:00:13]} 26. Bd3 {[%clk 0:01:16]}  Kb8 {[%clk 0:00:13]} 27. Bf5 {[%clk 0:01:16]}  Qd8 {[%clk 0:00:13]} 28. Qxf7 {[%clk 0:01:17]}  Bh6 {[%clk 0:00:12]} 29. Bxh6 {[%clk 0:01:15]}  h3 {[%clk 0:00:12]} 30. Bg5 {[%clk 0:01:15]}  hxg2 {[%clk 0:00:12]} 31. Kxg2 {[%clk 0:01:15]}  d5 {[%clk 0:00:11]} 32. Qe6 {[%clk 0:01:11]}  d4 {[%clk 0:00:11]} 33. f7 {[%clk 0:01:10]}  Rxg5+ {[%clk 0:00:10]} 34. fxg5 {[%clk 0:01:11]}  Qxg5+ {[%clk 0:00:11]} 35. Bg4 {[%clk 0:01:11]}  dxc3 {[%clk 0:00:10]} 36. f8=Q+ {[%clk 0:01:12]}  Ka7 {[%clk 0:00:11]} 37. Qf2+ {[%clk 0:01:12]}  b6 {[%clk 0:00:10]} 38. Qxc6 {[%clk 0:01:12]}  Qxg4+ {[%clk 0:00:11]} 39. Qg3 {[%clk 0:01:12]}  Qxg3+ {[%clk 0:00:09]} 40. Kxg3 {[%clk 0:01:13]}  cxb2 {[%clk 0:00:10]} 41. Re8 {[%clk 0:01:13]} 1-0


[Site "https://www.chess.com"]

[Event "Titled Tuesday Blitz May 10 Early 2022"]
[White "Bluebaum, Matthias"]
[Black "Matinian, Nikita"]
[WhiteFideId "24651516"]
[BlackFideId "24129100"]
[WhiteElo "2556"]
[BlackElo "2422"]
[Result "1-0"]
[Round "04"]
[TimeControl "180+1"]
[Date "2022.05.10"]
[WhiteClock "0:00:22"]
[BlackClock "0:00:03"]

1. d4 {[%clk 0:03:00]}  Nf6 {[%clk 0:02:59]} 2. c4 {[%clk 0:03:00]}  g6 {[%clk 0:03:00]} 3. Nc3 {[%clk 0:03:00]}  Bg7 {[%clk 0:03:00]} 4. e4 {[%clk 0:03:01]}  d6 {[%clk 0:03:01]} 5. Nf3 {[%clk 0:03:01]}  O-O {[%clk 0:03:01]} 6. Be2 {[%clk 0:03:02]}  e5 {[%clk 0:03:00]} 7. Be3 {[%clk 0:03:03]}  Nc6 {[%clk 0:02:59]} 8. d5 {[%clk 0:03:03]}  Ne7 {[%clk 0:02:54]} 9. Nd2 {[%clk 0:03:00]}  Kh8 {[%clk 0:02:41]} 10. c5 {[%clk 0:02:58]}  Nfg8 {[%clk 0:02:39]} 11. Nc4 {[%clk 0:02:58]}  f5 {[%clk 0:02:39]} 12. f3 {[%clk 0:02:59]}  Bh6 {[%clk 0:02:33]} 13. Qd2 {[%clk 0:02:49]}  Bxe3 {[%clk 0:02:32]} 14. Qxe3 {[%clk 0:02:50]}  f4 {[%clk 0:02:31]} 15. Qf2 {[%clk 0:02:49]}  g5 {[%clk 0:02:29]} 16. cxd6 {[%clk 0:02:37]}  cxd6 {[%clk 0:02:30]} 17. Nb5 {[%clk 0:02:37]}  Rf6 {[%clk 0:02:25]} 18. Nxa7 {[%clk 0:02:28]}  Bd7 {[%clk 0:02:25]} 19. Qb6 {[%clk 0:02:18]}  Qb8 {[%clk 0:02:23]} 20. Nb5 {[%clk 0:02:14]}  Nc8 {[%clk 0:02:14]} 21. Qd8 {[%clk 0:01:45]}  Bxb5 {[%clk 0:02:13]} 22. Nxe5 {[%clk 0:01:46]}  dxe5 {[%clk 0:01:43]} 23. Bxb5 {[%clk 0:01:46]}  Qa7 {[%clk 0:01:44]} 24. Qc7 {[%clk 0:01:30]}  Qe3+ {[%clk 0:01:42]} 25. Be2 {[%clk 0:01:30]}  Nd6 {[%clk 0:01:18]} 26. Qc3 {[%clk 0:01:30]}  Rc8 {[%clk 0:01:03]} 27. Qxe3 {[%clk 0:01:29]}  fxe3 {[%clk 0:01:04]} 28. Bd3 {[%clk 0:01:30]}  Ne7 {[%clk 0:00:59]} 29. Ke2 {[%clk 0:01:28]}  Ng6 {[%clk 0:00:59]} 30. g3 {[%clk 0:01:17]}  g4 {[%clk 0:00:59]} 31. Rhf1 {[%clk 0:01:15]}  Rxf3 {[%clk 0:00:54]} 32. Rxf3 {[%clk 0:01:16]}  gxf3+ {[%clk 0:00:55]} 33. Kxf3 {[%clk 0:01:16]}  Nf8 {[%clk 0:00:52]} 34. Kxe3 {[%clk 0:01:15]}  Nd7 {[%clk 0:00:53]} 35. b4 {[%clk 0:00:55]}  Nc4+ {[%clk 0:00:50]} 36. Ke2 {[%clk 0:00:49]}  Nb2 {[%clk 0:00:44]} 37. a4 {[%clk 0:00:48]}  Rc3 {[%clk 0:00:41]} 38. Bb5 {[%clk 0:00:48]}  Nf6 {[%clk 0:00:38]} 39. d6 {[%clk 0:00:32]}  Nc4 {[%clk 0:00:38]} 40. d7 {[%clk 0:00:25]}  Re3+ {[%clk 0:00:28]} 41. Kf2 {[%clk 0:00:24]}  Nxe4+ {[%clk 0:00:26]} 42. Kg1 {[%clk 0:00:24]}  Rd3 {[%clk 0:00:23]} 43. Bxc4 {[%clk 0:00:24]}  Rxd7 {[%clk 0:00:23]} 44. Bf1 {[%clk 0:00:20]}  Nd2 {[%clk 0:00:22]} 45. Bg2 {[%clk 0:00:20]}  e4 {[%clk 0:00:19]} 46. Kf2 {[%clk 0:00:20]}  Nb3 {[%clk 0:00:15]} 47. Re1 {[%clk 0:00:20]}  Rd2+ {[%clk 0:00:09]} 48. Re2 {[%clk 0:00:20]}  Rxe2+ {[%clk 0:00:05]} 49. Kxe2 {[%clk 0:00:21]}  Nc1+ {[%clk 0:00:05]} 50. Ke3 {[%clk 0:00:20]}  Nd3 {[%clk 0:00:06]} 51. Bxe4 {[%clk 0:00:21]}  Nxb4 {[%clk 0:00:06]} 52. Bxb7 {[%clk 0:00:21]}  Kg7 {[%clk 0:00:05]} 53. a5 {[%clk 0:00:22]}  Kf6 {[%clk 0:00:03]} 54. a6 {[%clk 0:00:22]} 1-0


[Site "https://www.chess.com"]

[Event "Titled Tuesday Blitz May 10 Early 2022"]
[White "Broca Jimenez, Fernando"]
[Black "Olsen, Filip Boe"]
[WhiteFideId "5104742"]
[BlackFideId "1440640"]
[WhiteElo "2062"]
[BlackElo "2247"]
[Result "0-1"]
[Round "04"]
[TimeControl "180+1"]
[Date "2022.05.11"]
[WhiteClock "0:01:43"]
[BlackClock "0:02:19"]

1. e4 {[%clk 0:03:00]}  c6 {[%clk 0:02:59]} 2. d4 {[%clk 0:02:59]}  d5 {[%clk 0:03:00]} 3. Nc3 {[%clk 0:02:59]}  dxe4 {[%clk 0:03:00]} 4. Nxe4 {[%clk 0:03:00]}  Bf5 {[%clk 0:03:01]} 5. Ng3 {[%clk 0:02:59]}  Bg6 {[%clk 0:03:01]} 6. h4 {[%clk 0:03:00]}  h6 {[%clk 0:03:02]} 7. h5 {[%clk 0:03:01]}  Bh7 {[%clk 0:03:02]} 8. Nf3 {[%clk 0:03:02]}  Nf6 {[%clk 0:03:02]} 9. Bd3 {[%clk 0:03:03]}  Bxd3 {[%clk 0:03:02]} 10. Qxd3 {[%clk 0:03:03]}  e6 {[%clk 0:03:03]} 11. Bf4 {[%clk 0:03:03]}  Qa5+ {[%clk 0:03:01]} 12. Bd2 {[%clk 0:03:04]}  Bb4 {[%clk 0:03:02]} 13. c3 {[%clk 0:03:02]}  Bd6 {[%clk 0:03:02]} 14. Ne4 {[%clk 0:03:01]}  Nxe4 {[%clk 0:03:01]} 15. Qxe4 {[%clk 0:03:02]}  Nd7 {[%clk 0:03:01]} 16. Bf4 {[%clk 0:02:59]}  Nf6 {[%clk 0:03:01]} 17. Qe3 {[%clk 0:02:58]}  Nd5 {[%clk 0:03:00]} 18. Bxd6 {[%clk 0:02:45]}  Nxe3 {[%clk 0:03:00]} 19. fxe3 {[%clk 0:02:46]}  O-O-O {[%clk 0:03:00]} 20. Bb4 {[%clk 0:02:40]}  Qf5 {[%clk 0:02:59]} 21. O-O-O {[%clk 0:02:36]}  Qe4 {[%clk 0:02:57]} 22. Rhe1 {[%clk 0:02:34]}  f6 {[%clk 0:02:56]} 23. Re2 {[%clk 0:02:33]}  Qg4 {[%clk 0:02:55]} 24. Rh1 {[%clk 0:02:32]}  Rd7 {[%clk 0:02:52]} 25. e4 {[%clk 0:02:32]}  Rhd8 {[%clk 0:02:52]} 26. Kd1 {[%clk 0:02:30]}  e5 {[%clk 0:02:51]} 27. Ke1 {[%clk 0:02:21]}  exd4 {[%clk 0:02:50]} 28. cxd4 {[%clk 0:02:21]}  Rxd4 {[%clk 0:02:50]} 29. Nxd4 {[%clk 0:02:20]}  Rxd4 {[%clk 0:02:51]} 30. Bc3 {[%clk 0:02:17]}  Rxe4 {[%clk 0:02:51]} 31. Rxe4 {[%clk 0:02:17]}  Qxe4+ {[%clk 0:02:52]} 32. Kf2 {[%clk 0:02:15]}  Qc2+ {[%clk 0:02:44]} 33. Kg3 {[%clk 0:02:13]}  Qf5 {[%clk 0:02:41]} 34. Rh4 {[%clk 0:02:07]}  b6 {[%clk 0:02:37]} 35. Kh2 {[%clk 0:02:05]}  Qg5 {[%clk 0:02:36]} 36. Kh3 {[%clk 0:02:04]}  f5 {[%clk 0:02:36]} 37. g3 {[%clk 0:02:00]}  a5 {[%clk 0:02:30]} 38. Be5 {[%clk 0:02:00]}  Kb7 {[%clk 0:02:28]} 39. Bf4 {[%clk 0:02:00]}  Qf6 {[%clk 0:02:29]} 40. Bc1 {[%clk 0:01:56]}  Qe5 {[%clk 0:02:24]} 41. Rf4 {[%clk 0:01:53]}  Qe1 {[%clk 0:02:22]} 42. Rxf5 {[%clk 0:01:45]}  Qxc1 {[%clk 0:02:20]} 43. Rf7+ {[%clk 0:01:46]}  Ka6 {[%clk 0:02:20]} 44. Rxg7 {[%clk 0:01:47]}  Qxb2 {[%clk 0:02:20]} 45. Rg6 {[%clk 0:01:47]}  Qd2 {[%clk 0:02:18]} 46. Rxc6 {[%clk 0:01:46]}  Qg5 {[%clk 0:02:17]} 47. g4 {[%clk 0:01:43]}  Qe3+ {[%clk 0:02:18]} 48. Kh4 {[%clk 0:01:43]}  Qf2+ {[%clk 0:02:18]} 49. Kh3 {[%clk 0:01:43]}  Qf3+ {[%clk 0:02:19]} 50. Kh2 {[%clk 0:01:43]}  Qxc6 {[%clk 0:02:19]} 0-1


[Site "https://www.chess.com"]

[Event "Titled Tuesday Blitz May 10 Early 2022"]
[White "Cherniaiev, Tykhon"]
[Black "Batsiashvili, Nino"]
[WhiteFideId "14182360"]
[BlackFideId "13602993"]
[WhiteElo "2289"]
[BlackElo "2193"]
[Result "1-0"]
[Round "04"]
[TimeControl "180+1"]
[Date "2022.05.11"]
[WhiteClock "0:00:20"]
[BlackClock "0:00:13"]

1. Nf3 {[%clk 0:03:00]}  d5 {[%clk 0:02:59]} 2. c4 {[%clk 0:03:00]}  d4 {[%clk 0:02:57]} 3. b4 {[%clk 0:02:59]}  g5 {[%clk 0:02:55]} 4. Qb3 {[%clk 0:02:58]}  g4 {[%clk 0:02:52]} 5. Nxd4 {[%clk 0:02:58]}  Qxd4 {[%clk 0:02:38]} 6. Bb2 {[%clk 0:02:57]}  Qd6 {[%clk 0:02:29]} 7. Bxh8 {[%clk 0:02:57]}  f6 {[%clk 0:02:28]} 8. e3 {[%clk 0:02:45]}  a5 {[%clk 0:02:27]} 9. c5 {[%clk 0:02:45]}  Qe6 {[%clk 0:02:06]} 10. Bc4 {[%clk 0:02:45]}  Qe4 {[%clk 0:02:03]} 11. Bxg8 {[%clk 0:02:40]}  e6 {[%clk 0:02:02]} 12. Nc3 {[%clk 0:02:31]}  Qxg2 {[%clk 0:02:00]} 13. Rf1 {[%clk 0:02:22]}  axb4 {[%clk 0:01:55]} 14. Qxb4 {[%clk 0:02:21]}  Na6 {[%clk 0:01:50]} 15. Qe4 {[%clk 0:01:40]}  Qxe4 {[%clk 0:01:48]} 16. Nxe4 {[%clk 0:01:41]}  f5 {[%clk 0:01:49]} 17. Nf6+ {[%clk 0:01:33]}  Ke7 {[%clk 0:01:46]} 18. Nxh7 {[%clk 0:01:30]}  Nxc5 {[%clk 0:01:45]} 19. Bf6+ {[%clk 0:01:16]}  Ke8 {[%clk 0:01:40]} 20. Bd4 {[%clk 0:01:11]}  Bd6 {[%clk 0:01:24]} 21. Ng5 {[%clk 0:00:37]}  Ke7 {[%clk 0:01:19]} 22. Bxc5 {[%clk 0:00:33]}  Bxc5 {[%clk 0:01:18]} 23. Rc1 {[%clk 0:00:32]}  Bd6 {[%clk 0:01:15]} 24. f3 {[%clk 0:00:33]}  Bd7 {[%clk 0:01:12]} 25. Bxe6 {[%clk 0:00:27]}  Bxe6 {[%clk 0:01:09]} 26. Nxe6 {[%clk 0:00:28]}  Kxe6 {[%clk 0:01:10]} 27. fxg4 {[%clk 0:00:29]}  fxg4 {[%clk 0:01:10]} 28. Rc4 {[%clk 0:00:29]}  Rxa2 {[%clk 0:01:08]} 29. Rxg4 {[%clk 0:00:29]}  Bxh2 {[%clk 0:01:07]} 30. Ke2 {[%clk 0:00:27]}  Bd6 {[%clk 0:01:04]} 31. Rg6+ {[%clk 0:00:26]}  Kd5 {[%clk 0:01:03]} 32. Rf5+ {[%clk 0:00:25]}  Kc6 {[%clk 0:00:57]} 33. e4 {[%clk 0:00:25]}  Kd7 {[%clk 0:00:45]} 34. e5 {[%clk 0:00:25]}  Bb4 {[%clk 0:00:43]} 35. Rf7+ {[%clk 0:00:20]}  Ke8 {[%clk 0:00:43]} 36. Rxc7 {[%clk 0:00:20]}  Rxd2+ {[%clk 0:00:43]} 37. Ke3 {[%clk 0:00:20]}  Rb2 {[%clk 0:00:13]} 38. Rg8+ {[%clk 0:00:19]}  Bf8 {[%clk 0:00:13]} 39. Rc8+ {[%clk 0:00:20]}  Ke7 {[%clk 0:00:13]} 40. Rcxf8 {[%clk 0:00:20]} 1-0


[Site "https://www.chess.com"]

[Event "Titled Tuesday Blitz May 10 Early 2022"]
[White "Chernomordik, Pavel"]
[Black "Quirke, Jeffrey"]
[WhiteFideId "2804530"]
[BlackFideId "2013029"]
[WhiteElo "2220"]
[BlackElo "2145"]
[Result "1-0"]
[Round "04"]
[TimeControl "180+1"]
[Date "2022.05.11"]
[WhiteClock "0:00:48"]
[BlackClock "0:00:04"]

1. e4 {[%clk 0:03:00]}  e5 {[%clk 0:02:59]} 2. Nf3 {[%clk 0:03:00]}  Nf6 {[%clk 0:03:00]} 3. Nc3 {[%clk 0:02:59]}  Nc6 {[%clk 0:02:49]} 4. d4 {[%clk 0:02:53]}  exd4 {[%clk 0:02:49]} 5. Nxd4 {[%clk 0:02:52]}  Bc5 {[%clk 0:02:46]} 6. Nb3 {[%clk 0:02:51]}  Bb6 {[%clk 0:02:41]} 7. Bg5 {[%clk 0:02:50]}  h6 {[%clk 0:02:39]} 8. Bh4 {[%clk 0:02:50]}  d6 {[%clk 0:02:20]} 9. Qe2 {[%clk 0:02:48]}  Be6 {[%clk 0:02:00]} 10. O-O-O {[%clk 0:02:46]}  Qe7 {[%clk 0:01:50]} 11. f3 {[%clk 0:02:43]}  O-O-O {[%clk 0:01:45]} 12. Qb5 {[%clk 0:02:33]}  g5 {[%clk 0:01:38]} 13. Bg3 {[%clk 0:02:32]}  Nh5 {[%clk 0:01:32]} 14. Be1 {[%clk 0:02:20]}  Be3+ {[%clk 0:01:20]} 15. Bd2 {[%clk 0:02:17]}  Bxd2+ {[%clk 0:01:19]} 16. Rxd2 {[%clk 0:02:17]}  Nf6 {[%clk 0:01:03]} 17. Nd4 {[%clk 0:02:03]}  Nxd4 {[%clk 0:01:00]} 18. Rxd4 {[%clk 0:02:02]}  d5 {[%clk 0:00:39]} 19. Qa5 {[%clk 0:01:37]}  Kb8 {[%clk 0:00:32]} 20. Ra4 {[%clk 0:01:32]}  a6 {[%clk 0:00:12]} 21. Bxa6 {[%clk 0:01:31]}  b6 {[%clk 0:00:03]} 22. Qb4 {[%clk 0:01:30]}  Qxb4 {[%clk 0:00:02]} 23. Rxb4 {[%clk 0:01:29]}  dxe4 {[%clk 0:00:03]} 24. fxe4 {[%clk 0:01:25]}  Nd7 {[%clk 0:00:03]} 25. Rf1 {[%clk 0:01:21]}  Nc5 {[%clk 0:00:03]} 26. Bc4 {[%clk 0:01:17]}  Rhe8 {[%clk 0:00:03]} 27. Bxe6 {[%clk 0:01:13]}  fxe6 {[%clk 0:00:04]} 28. e5 {[%clk 0:01:03]}  Nd7 {[%clk 0:00:03]} 29. Re4 {[%clk 0:01:00]}  Rf8 {[%clk 0:00:03]} 30. Rd1 {[%clk 0:00:59]}  Nc5 {[%clk 0:00:02]} 31. Rxd8+ {[%clk 0:00:56]}  Rxd8 {[%clk 0:00:03]} 32. Re2 {[%clk 0:00:56]}  Rf8 {[%clk 0:00:03]} 33. Kd2 {[%clk 0:00:54]}  Rf5 {[%clk 0:00:03]} 34. Nb5 {[%clk 0:00:49]}  Nd7 {[%clk 0:00:03]} 35. Nd4 {[%clk 0:00:48]}  Rxe5 {[%clk 0:00:04]} 36. Nc6+ {[%clk 0:00:48]} 1-0


[Site "https://www.chess.com"]

[Event "Titled Tuesday Blitz May 10 Early 2022"]
[White "Cunjalo, Faris"]
[Black "Arias, Juan Cruz"]
[WhiteFideId "14410710"]
[BlackFideId "118540"]
[WhiteElo "2847"]
[BlackElo "2583"]
[Result "1-0"]
[Round "04"]
[TimeControl "180+1"]
[Date "2022.05.11"]
[WhiteClock "0:00:05"]
[BlackClock "0:00:12"]

1. d4 {[%clk 0:03:00]}  e6 {[%clk 0:02:59]} 2. c4 {[%clk 0:02:49]}  Nf6 {[%clk 0:03:00]} 3. Nc3 {[%clk 0:02:49]}  Bb4 {[%clk 0:03:00]} 4. Qc2 {[%clk 0:02:47]}  O-O {[%clk 0:02:59]} 5. e4 {[%clk 0:02:47]}  d6 {[%clk 0:02:56]} 6. e5 {[%clk 0:02:45]}  Nfd7 {[%clk 0:02:55]} 7. Nf3 {[%clk 0:02:44]}  Nc6 {[%clk 0:02:53]} 8. Bf4 {[%clk 0:02:44]}  Nxd4 {[%clk 0:02:48]} 9. Nxd4 {[%clk 0:02:18]}  dxe5 {[%clk 0:02:46]} 10. Nxe6 {[%clk 0:02:16]}  fxe6 {[%clk 0:02:43]} 11. Be3 {[%clk 0:02:13]}  Nf6 {[%clk 0:02:34]} 12. Bd3 {[%clk 0:02:05]}  Bd7 {[%clk 0:02:02]} 13. O-O-O {[%clk 0:02:04]}  Qe8 {[%clk 0:01:59]} 14. Ne4 {[%clk 0:01:40]}  h6 {[%clk 0:01:50]} 15. Nxf6+ {[%clk 0:01:06]}  Rxf6 {[%clk 0:01:51]} 16. Bh7+ {[%clk 0:01:05]}  Kh8 {[%clk 0:01:51]} 17. Be4 {[%clk 0:01:06]}  Ba4 {[%clk 0:01:51]} 18. b3 {[%clk 0:01:05]}  Bc6 {[%clk 0:01:50]} 19. g4 {[%clk 0:00:49]}  a5 {[%clk 0:01:41]} 20. a4 {[%clk 0:00:49]}  Bxe4 {[%clk 0:01:31]} 21. Qxe4 {[%clk 0:00:50]}  c6 {[%clk 0:01:24]} 22. Rhg1 {[%clk 0:00:40]}  b5 {[%clk 0:01:23]} 23. g5 {[%clk 0:00:40]}  hxg5 {[%clk 0:01:23]} 24. Rxg5 {[%clk 0:00:40]}  Rf5 {[%clk 0:01:13]} 25. Rxf5 {[%clk 0:00:33]}  exf5 {[%clk 0:01:14]} 26. Qxf5 {[%clk 0:00:34]}  bxc4 {[%clk 0:01:05]} 27. bxc4 {[%clk 0:00:33]}  Rd8 {[%clk 0:00:55]} 28. Rg1 {[%clk 0:00:14]}  Qd7 {[%clk 0:00:55]} 29. Qxd7 {[%clk 0:00:12]}  Rxd7 {[%clk 0:00:56]} 30. Kc2 {[%clk 0:00:08]}  e4 {[%clk 0:00:55]} 31. Rg6 {[%clk 0:00:05]}  Rd3 {[%clk 0:00:56]} 32. Rxc6 {[%clk 0:00:06]}  Ra3 {[%clk 0:00:56]} 33. c5 {[%clk 0:00:03]}  Rxa4 {[%clk 0:00:55]} 34. Rc8+ {[%clk 0:00:04]}  Kh7 {[%clk 0:00:55]} 35. c6 {[%clk 0:00:05]}  Ra3 {[%clk 0:00:50]} 36. Bd4 {[%clk 0:00:05]}  Rd3 {[%clk 0:00:43]} 37. Rd8 {[%clk 0:00:06]}  Bc5 {[%clk 0:00:21]} 38. c7 {[%clk 0:00:05]}  Bxd4 {[%clk 0:00:12]} 39. c8=Q {[%clk 0:00:05]} 1-0


[Site "https://www.chess.com"]